Cogmind - Beta 10.2 @@@ ROGUE MODE // 2021.05.30 @ 14:40:42 Player: KeithInKC Result: Destroyed by Y-54 Guardian with Gatling Laser Performance ------------- Evolutions (3) 1500 Regions Visited (5) 1000 Robots Destroyed (19) 95 Value Destroyed (575) 575 Prototype IDs (6) 120 Alien Tech Used (0) 0 Bonus (0) 0 TOTAL SCORE: 3290 Bonus ------- None Cogmind --------- Core Integrity 0/700 Matter 232/300 Energy 99/100 System Corruption 0% Temperature Cool (18) Movement Core (50) Location -7/Storage Parts ------- > --- POWER (2) -------- (None) > --- PROPULSION (4) --- (None) > --- UTILITY (5) ------ Improved Sensor Array Improved Signal Interpreter > --- WEAPON (2) ------- (None) > --- INVENTORY (4) ---- Micro Nuclear Core Visual Processing Unit Hammer Peak State ------------ > --- POWER ------------ Micro Nuclear Core Micro Nuclear Core > --- PROPULSION ------- Xenon Bombardment Thruster Xenon Bombardment Thruster Xenon Bombardment Thruster > --- UTILITY ---------- Compact Matter Pod Long-range Sensor Array Improved Signal Interpreter Improved Terrain Scanner Hacking Suite > --- WEAPON ----------- EM Shotgun Hammer > --- INVENTORY -------- Visual Processing Unit Improved Sensor Array [Rating: 37] Favorites ----------- Power Micro Nuclear Core Engine Ion Engine Power Core Micro Nuclear Core Propulsion Xenon Bombardment Thruster Leg Aluminum Leg Wheel Wheel Flight Unit Xenon Bombardment Thruster Utility Hacking Suite Device Improved Terrain Scanner Storage Compact Matter Pod Processor Improved Signal Interpreter Hackware Hacking Suite Weapon EM Shotgun Energy Gun EM Shotgun Energy Cannon Plasma Cannon Ballistic Gun Assault Rifle Launcher Grenade Launcher Impact Weapon Hammer Build | -11 -10 -9 -8 -7 -7 ------- Run | Scr Mat Mat Mat Fac Sto Slots Evolved 6 | . . 2 2 2 . Power 1 | . . . . 1 . Propulsion 2 | . . . 2 . . Utility 3 | . . 2 . 1 . Weapon . | . . . . . . Parts Attached 43 | 6 7 5 5 18 2 Power 9 | 1 1 . . 7 . Engine 6 | 1 1 . . 4 . Core 3 | . . . . 3 . Reactor . | . . . . . . Propulsion 7 | 2 . . 2 3 . Treads . | . . . . . . Leg 2 | . . . 2 . . Wheel 2 | 2 . . . . . Hover . | . . . . . . Flight 3 | . . . . 3 . Utility 14 | 1 3 4 1 3 2 Device 8 | . 2 2 1 1 2 Storage 4 | 1 1 1 . 1 . Processor 1 | . . . . 1 . Hackware 1 | . . 1 . . . Protection . | . . . . . . Artifact . | . . . . . . Weapon 13 | 2 3 1 2 5 . Energy Gun 5 | . 2 1 1 1 . Energy Cannon 1 | . . . . 1 . Ballistic Gun 3 | 2 . . 1 . . Ballistic Cannon . | . . . . . . Launcher 1 | . 1 . . . . Special Weapon . | . . . . . . Impact Weapon 3 | . . . . 3 . Slashing Weapon . | . . . . . . Piercing Weapon . | . . . . . . Special Melee Weapon . | . . . . . . Unidentified Prototypes . | . . . . . . Parts Lost 14 | . . 1 5 . 8 Power 1 | . . . 1 . . Propulsion 4 | . . . 1 . 3 Utility 4 | . . . . . 4 Weapon 5 | . . 1 3 . 1 Highest Loss Streak 6 | . . 1 5 . 6 Average Slot Usage (%) 80 | . 97 100 95 69 67 Engine 6 | . 14 11 8 3 . Core 4 | . . . . 6 10 Leg 1 | . . . 15 1 . Wheel 11 | . 28 22 18 2 . Flight 8 | . . . . 13 16 Device 14 | . 11 16 17 15 11 Storage 9 | . 14 22 9 6 5 Processor 1 | . . . . 1 7 Hackware 5 | . . 5 9 7 6 Energy Gun 11 | . 20 19 15 7 3 Ballistic Gun 1 | . 4 . 1 . . Naked Turns . | . . . . . . Heaviest Build 65 | 13 44 48 43 65 21 Greatest Support 21 | 20 20 20 20 21 21 Greatest Overweight (x) 3 | . 2 2 2 3 1 Average Overweight (x) . | . 1 2 1 . . Largest Inventory Capacity 12 | 6 12 12 12 12 4 Average Capacity 7 | 5 10 12 12 5 4 Most Carried 12 | 6 12 12 11 11 4 Average Carried 6 | 4 10 11 9 4 2 Final Capacity 12 | 6 12 12 12 4 4 Final Carried 12 | 6 12 12 9 2 3 Class Distribution -------------------- 74% | Mutant 20% | Scout 4% | Scavenger-Mutant Dominant Class ---------------- Mutant | -10/Materials Mutant | -9/Materials Mutant | -8/Materials Mutant | -7/Factory Scout | -7/Storage Resources | -11 -10 -9 -8 -7 -7 ----------- Run | Scr Mat Mat Mat Fac Sto Matter Collected 670 | 239 195 140 . 96 . Remotely . | . . . . . . Salvage Created 578 | . 292 155 57 74 . Parts 34 | . 15 12 1 6 . Haulers Intercepted . | . . . . . . Recyclers Shooed . | . . . . . . Parts Field Recycled . | . . . . . . Retrieved Matter . | . . . . . . Parts Self-Destructed . | . . . . . . Prevented . | . . . . . . Kills | -11 -10 -9 -8 -7 -7 ------- Run | Scr Mat Mat Mat Fac Sto Combat Hostiles Destroyed 12 | . 7 4 1 . . Guns 6 | . 3 2 1 . . AOE 6 | . 4 2 . . . Classes Destroyed 6 | . 3 3 . . . Worker 1 | . . 1 . . . Tunneler 1 | . 1 . . . . Operator 1 | . . 1 . . . Watcher 4 | . 2 . . 2 . Grunt 11 | . 7 3 1 . . Brawler 1 | . . 1 . . . Best Kill Streak 5 | . 3 5 1 2 . Combat Bots Only 4 | . 2 4 1 . . Max Kills in Single Turn 3 | . 3 2 1 1 . Gunslinging 1 | . . 1 . . . Exploded 2 | . 2 1 . . . Melee . | . . . . . . Uniques/NPCs Destroyed . | . . . . . . Combat | -11 -10 -9 -8 -7 -7 -------- Run | Scr Mat Mat Mat Fac Sto Damage Taken 1981 | . 271 103 574 . 1033 Core 926 | . 55 11 150 . 710 Absorbed by Shields . | . . . . . . Core Remaining (%) 86 | 100 78 97 72 . . Volleys Fired 50 | . 19 9 12 10 . Largest 2 | . 2 2 2 1 . Hottest 105 | . 105 105 105 45 . Shots Fired 82 | . 36 15 21 10 . Gun 73 | . 29 13 21 10 . Cannon . | . . . . . . Launcher 9 | . 7 2 . . . Special . | . . . . . . Kinetic 11 | . 10 . 1 . . Thermal 52 | . 19 13 20 . . Explosive 9 | . 7 2 . . . Electromagnetic 10 | . . . . 10 . Robot Hit Streak 8 | . 8 3 4 5 . Robot Miss Streak 4 | . 3 4 4 4 . Penetration Max . | . . . . . . Secondary Targets 3 | . 1 1 1 . . Max Gunslinging Chain 1 | . 1 1 1 . . Shots Hit Robots 44 | . 19 8 11 6 . Core Hits 40 | . 16 13 6 4 1 Critical Hits . | . . . . . . Critical Kills . | . . . . . . Critical Parts Destroyed . | . . . . . . Melee Attacks 6 | . . . . 4 2 Impact 6 | . . . . 4 2 Slashing . | . . . . . . Piercing . | . . . . . . Sneak Attacks . | . . . . . . Combat Hostiles . | . . . . . . Follow-up Attacks . | . . . . . . Damage Inflicted 1173 | . 641 295 136 94 7 Guns 553 | . 231 92 136 94 . Cannons . | . . . . . . Explosions 613 | . 410 203 . . . Melee . | . . . . . . Ramming 7 | . . . . . 7 Kinetic 114 | . 99 . 15 . . Thermal 345 | . 132 92 121 . . Explosive 613 | . 410 203 . . . Electromagnetic 94 | . . . . 94 . Impact . | . . . . . . Slashing . | . . . . . . Piercing . | . . . . . . Highest Corruption 1 | . 1 . . . . Average Corruption 1 | . 1 . . . . Corruption Purged . | . . . . . . Overload Shots . | . . . . . . Overflow Damage 18 | . 18 . . . . Projectiles . | . . . . . . Explosions 18 | . 18 . . . . Melee . | . . . . . . Knockbacks . | . . . . . . Impact . | . . . . . . Kinetic . | . . . . . . Secondary . | . . . . . . Self-Inflicted Damage 46 | . 43 . . . 3 Shots 2 | . 2 . . . . Rammed 2 | . . . . . 2 Targets Rammed 2 | . . . . . 2 Kicked . | . . . . . . Crushed . | . . . . . . Highest Temperature 262 | . 180 11 262 16 21 Average Temperature 73 | . 63 5 127 4 8 Received Heat Transfer 747 | . 90 57 297 . 303 Effects 1 | . . . 1 . . Interference 1 | . . . 1 . . Siege Activations . | . . . . . . Robots Corrupted . | . . . . . . Combat Hostiles . | . . . . . . Parts Fried 1 | . . . . 1 . Impact Corruptions . | . . . . . . Robots Melted . | . . . . . . Combat Hostiles . | . . . . . . Parts Melted 3 | . 2 . 1 . . Heat Transferred 818 | . 309 223 286 . . Parts Sabotaged . | . . . . . . Parts Stolen . | . . . . . . Parts Stripped . | . . . . . . Power Chain Reactions . | . . . . . . Missiles Intercepted . | . . . . . . Alert | -11 -10 -9 -8 -7 -7 ------- Run | Scr Mat Mat Mat Fac Sto Peak Influence 210 | . 210 188 114 135 132 Initial 79 | . . 31 79 28 . Average 57 | . 67 133 85 37 64 Maximum Alert Level 1 | . 1 . . . . Low Security (%) 99 | 100 99 100 100 100 100 Level 1 . | . . . . . . Level 2 . | . . . . . . Level 3 . | . . . . . . Level 4 . | . . . . . . Level 5 . | . . . . . . High Security . | . . . . . . Max Security . | . . . . . . Squads Dispatched 3 | . 2 . . . 1 Investigation . | . . . . . . Extermination . | . . . . . . Reinforcement 3 | . 2 . . . 1 Assault . | . . . . . . Garrison . | . . . . . . Intercept . | . . . . . . Construction Impeded . | . . . . . . Haulers Reinforced . | . . . . . . Stealth | -11 -10 -9 -8 -7 -7 --------- Run | Scr Mat Mat Mat Fac Sto Distress Signals 3 | . . 1 1 . 1 Communications Jammed . | . . . . . . Distress Signals . | . . . . . . Times Spotted 49 | . 14 7 6 5 17 Peak Tracking Total 12 | . 3 4 4 4 12 Tactical Retreats 3 | . . 1 . 1 1 Traps | -11 -10 -9 -8 -7 -7 ------- Run | Scr Mat Mat Mat Fac Sto Traps Triggered 4 | . 2 . . 1 1 Indirectly . | . . . . . . Trap Hack Attempts . | . . . . . . Triggered . | . . . . . . Disarmed . | . . . . . . Reprogrammed . | . . . . . . Reused . | . . . . . . Traps Extracted . | . . . . . . Installed . | . . . . . . Triggered . | . . . . . . Machines | -11 -10 -9 -8 -7 -7 ---------- Run | Scr Mat Mat Mat Fac Sto Machines Disabled 2 | . 2 . . . . Max in Single Turn 1 | . 1 . . . . Garrison Access 1 | . . . . 1 . Machines Sabotaged . | . . . . . . Garrisons Compromised . | . . . . . . Overloaded Fab Kills . | . . . . . . Fab Network Shutdowns . | . . . . . . Hacking | -11 -10 -9 -8 -7 -7 --------- Run | Scr Mat Mat Mat Fac Sto Machines Accessed 19 | . 5 4 . 7 3 Terminals 13 | . 4 4 . 4 1 Fabricators . | . . . . . . Repair Stations . | . . . . . . Recycling Units 4 | . 1 . . 1 2 Scanalyzers 1 | . . . . 1 . Garrison Access 1 | . . . . 1 . Total Hacks 45 | . 11 11 . 19 4 Successful 23 | . 6 6 . 9 2 Failed 22 | . 5 5 . 10 2 Catastrophic 2 | . . 1 . 1 . Database Lockouts . | . . . . . . Manual 11 | . 4 6 . 1 . Terminals 37 | . 10 11 . 14 2 Fabricators . | . . . . . . Repair Stations . | . . . . . . Recycling Units 4 | . 1 . . 1 2 Scanalyzers 3 | . . . . 3 . Garrison Access 1 | . . . . 1 . Terminal Hacks 19 | . 5 6 . 7 1 Record 4 | . . 1 . 3 . Part Schematic 1 | . . . . 1 . Robot Schematic 1 | . . . . 1 . Prototype ID Bank 3 | . 2 1 . . . Level Access Points 1 | . . . . . 1 Branch Access Points 1 | . . 1 . . . Emergency Access Points 2 | . 1 1 . . . Scanalyzer Index 1 | . 1 . . . . Alert Level 1 | . . . . 1 . Locate Traps 2 | . 1 . . 1 . Reinforcement Status 1 | . . 1 . . . Zone Layout 1 | . . 1 . . . Fabricator Hacks . | . . . . . . Repair Station Hacks . | . . . . . . Recycling Unit Hacks 2 | . 1 . . . 1 Report Inventory 2 | . 1 . . . 1 Scanalyzer 1 | . . . . 1 . Insert Component 1 | . . . . 1 . Garrison Access Hacks 1 | . . . . 1 . Seal Access 1 | . . . . 1 . Unauthorized Hacks . | . . . . . . Terminals . | . . . . . . Fabricators . | . . . . . . Repair Stations . | . . . . . . Recycling Units . | . . . . . . Scanalyzers . | . . . . . . Garrison Access . | . . . . . . Data Cores Recovered 1 | . . 1 . . . Used 1 | . . 1 . . . Hacking Detections 16 | . 5 4 . 6 1 Full Trace Events . | . . . . . . Feedback Events . | . . . . . . Feedback Blocked . | . . . . . . Robot Schematics Acquired 1 | . . . . 1 . Robots Built . | . . . . . . Matter . | . . . . . . Time . | . . . . . . Total Robot Build Rating . | . . . . . . Part Schematics Acquired 1 | . . . . 1 . Parts Built . | . . . . . . Matter . | . . . . . . Time . | . . . . . . Total Part Build Rating . | . . . . . . Parts Repaired . | . . . . . . Time . | . . . . . . Parts Recycled . | . . . . . . Recycled Matter . | . . . . . . Retrieved Matter . | . . . . . . Retrieved Components . | . . . . . . Parts Scanalyzed 1 | . . . . 1 . Part Schematics Acquired . | . . . . . . Parts Damaged . | . . . . . . Bothacking | -11 -10 -9 -8 -7 -7 ------------ Run | Scr Mat Mat Mat Fac Sto Used RIF Installer . | . . . . . . Robots Hacked . | . . . . . . Non-combat . | . . . . . . Combat . | . . . . . . Robot Hacks Applied . | . . . . . . Relay Couplers Released . | . . . . . . Robots Rewired . | . . . . . . Allies Hacked . | . . . . . . Hacks Repelled . | . . . . . . Allies | -11 -10 -9 -8 -7 -7 -------- Run | Scr Mat Mat Mat Fac Sto Total Allies . | . . . . . . Largest Group . | . . . . . . Highest-Rated Group . | . . . . . . Highest-Rated Ally . | . . . . . . Total Orders . | . . . . . . Ally Attacks . | . . . . . . Total Damage . | . . . . . . Kills . | . . . . . . Allies Corrupted . | . . . . . . Allies Melted . | . . . . . . Intel | -11 -10 -9 -8 -7 -7 ------- Run | Scr Mat Mat Mat Fac Sto Robot Analysis Total . | . . . . . . Derelict Logs Recovered . | . . . . . . Drone Launches . | . . . . . . Drone Recoveries . | . . . . . . Exploration | -11 -10 -9 -8 -7 -7 ------------- Run | Scr Mat Mat Mat Fac Sto Turns Passed 1891 | 66 444 168 105 891 217 Spaces Moved 1884 | 55 317 125 60 976 351 Core 81 | 2 . . . . 79 Treads . | . . . . . . Legs . | . . . . . . Wheels 638 | 53 317 125 60 83 . Hover . | . . . . . . Flight 1165 | . . . . 893 272 Fastest Speed 34 | 50 80 100 90 34 34 Average Speed 59 | 78 95 100 98 45 40 Slowest Speed 120 | 80 100 100 100 120 120 Overloaded Moves . | . . . . . . Propulsion Burnouts . | . . . . . . Robots Hopped 1 | . . . . . 1 Cave-ins Triggered . | . . . . . . Exploration Rate (%) 28 | 4 55 25 12 20 54 Regions Visited 5 Branch Regions 1 Pre-discovered Areas . | . . . . . . Known Exits Taken 1 | . . . . 1 . Unknown Exits Taken 4 | 1 1 1 1 . . Scrap Searched . | . . . . . . Spaces Dug 5 | . . . . 3 2 Terrain Destroyed 56 | . 34 17 . 3 2 Melee 5 | . . . . 3 2 Projectile . | . . . . . . AOE 51 | . 34 17 . . . Terrain Rammed . | . . . . . . Walls Destroyed . | . . . . . . Machines Disabled . | . . . . . . Actions | -11 -10 -9 -8 -7 -7 --------- Run | Scr Mat Mat Mat Fac Sto Total 2569 | 76 424 153 84 1411 421 Wait 507 | 5 65 6 7 363 61 Move 1877 | 54 316 124 59 975 349 Hop 1 | . . . . . 1 Pick Up 36 | 11 9 6 1 8 1 Fast Attach 12 | 1 3 . . 7 1 Attach 21 | 5 . 3 4 8 1 Detach 6 | . 1 . . 4 1 Swap 10 | . 4 2 1 3 . Drop 23 | . 7 3 . 11 2 Fire 50 | . 19 9 12 10 . Melee 6 | . . . . 4 2 Ram 2 | . . . . . 2 Kick . | . . . . . . Crush . | . . . . . . Escape Stasis 18 | . . . . 18 . Rewire . | . . . . . . Trap . | . . . . . . Miscellaneous . | . . . . . . Route ------- -11/Scrapyard -10/Materials (discovered 2 exits: *Mat x2) -9/Materials (discovered 3 exits: [*Mat] / Min x2) -8/Materials -7/Factory -7/Storage (discovered 1 exit: Fac) History --------- Turn | Location | Event 28 | -11/Scrapyard | Discovered new exit (range 13) 67 | -11/Scrapyard | Entered Materials 225 | -10/Materials | Discovered new exit (range 4) 313 | -10/Materials | Build established: Mutant 486 | -10/Materials | Discovered new exit (range 13) 511 | -10/Materials | Entered another Materials area 511 | -9/Materials | Evolved 2 slots: Utility x2 643 | -9/Materials | Discovered new exit (range 4) 672 | -9/Materials | Identified exit to Mines 679 | -9/Materials | Entered another Materials area 679 | -8/Materials | Evolved 2 slots: Propulsion x2 768 | -8/Materials | Discovered new exit (range 15) 784 | -8/Materials | Entered Factory 784 | -7/Factory | Evolved 2 slots: Power x1, Utility x1 807 | -7/Factory | Lost 5 parts (1p1n3w) 1673 | -7/Factory | Discovered new exit (range 8) 1675 | -7/Factory | Identified exit to Storage 1675 | -7/Factory | Entered Storage 1721 | -7/Storage | Identified exit to Factory 1731 | -7/Storage | Build established: Scout 1840 | -7/Storage | Core integrity fell below 50% 1868 | -7/Storage | Lost 6 parts (3n3u) 1873 | -7/Storage | Core integrity fell below 20% 1892 | -7/Storage | Destroyed by Y-54 Guardian with Gatling Laser Last Messages --------------- 01813_ Xenon Bombardment Thruster destroyed. 01829_ Dropped Mic. Nuclear Core. 01833_ Xenon Bombardment Thruster destroyed. 01834_ Lrn. Sensor Array destroyed. 01835_ Dropped Mic. Nuclear Core. 01836_ Triggered Blade Trap. 01836_ Massive razor-sharp blades shoot up from within the floor. 01836_ Imp. Terrain Scanner severed. 01837_ Com. Matter Pod destroyed. 01837_ Acquired Imp. Terrain Scanner. 01837_ Imp. Terrain Scanner destroyed. 01841_ W-25 Informer destroyed. 01842_ U-05 Engineer lays Concrete. 01844_ Slammed into K-01 Serf. 01857_ Slammed into U-05 Engineer. 01868_ ALERT: Hostiles spotted, dispatching reinforcements to Terminal S008. 01872_ Hacking Suite destroyed. 01879_ K-01 Serf collects debris. 01881_ Penetrated by Slug. Map ----- +----------------------------------------------------+ | | | ????????????????????????????????????????????? | | ????????????????????????????????????????????? | | ????????????????????????????????????????????? | | ????????????????????????????????????????????? | | ????????????????????????????????????????????? | | ????????????????????????????????????????????? | | ????????????????????????????????????????????? | | ????????????????????????????????????????????? | | ????????????????????????????????????????????? | | ????????????????????????????????????????????? | | ????????????????????????????????????????????? | | ????????????????????????????????????????????? | | ????????????????????????????????????????????? | | ????????????????????????????????????????????? | | ????????????????????????????????????????????? | | ????????????????????????????????????????????? | | ?????????????????????????????????s??????????? | | ????????#########??????????????s????????????? | | ????????# #???????????????s???????????? | | ######??#] "" #????????????????????????????? | | # #??# G" #????????????????????????????? | | # #### "" ###########???#??????????????? | | # + / # a ### ##?????????????? | | # ## # Y# "??" # ####??????????? | | # ## #####/## "???" @ Y Y #????? | | # # ### # "????" # #????? | | # # Y h "???"" # ##### #????? | | #!]] # ### #s"??"" #? ##?????????????? | | # ## #??## ##s""""s #? #??????????????? | | ####/## #???# ## s u #?? #??????????????? | | #???# ############?? #??????????????? | | #### #???# #??????????????#??????????????? | | ???# #???# #?Y???????????????????????????? | | ???# #???# #?????????????????????????????? | | ####### #???# #????????k????????????????????? | | # #???# #?????????????????????????????? | | # #???# #?????????????????????????????? | | # #???# #?????????????????????????????? | | ####### #???# #?????????????????????????????? | | ???####+##### ##????????????????????????????? | | ???# # ######/#?????????????????????? | | ???# + ??????????????? | | ???# # ########?????????????????????? | | ############# ##????????????????????????????? | | ## #????????????????????????????? | | ####### ## #????????????????????????????? | | ???#### ## #????????????????????????????? | | ?"""""# #??"?????????????????????????? | | #""T""#+## #????????????????????????????? | +----------------------------------------------------+ Best States ------------- Heat Dissipation 42 Energy Generation 27 Energy Capacity 480 Matter Stores 390 Matter Capacity 450 Sight Range 16 Robot Scan Range 20 Terrain Scan Range 16 Terrain Scan Density 10 Evasion (%) 63 Offensive Hacking 10 Item Schematics ----------------- Lrn. Sensor Array | -7/Factory | Hacked Robot Schematics ------------------ R-06 Scavenger | -7/Factory | Hacked Fabricated ------------ Nothing Alien Tech Used ----------------- None Achievements -------------- None Challenges ------------ None Game ------ Seed MomentumMomentumBarrier Manual? 0 Play Time 01:27:52 Cumulative 35.1 hours Start 2021.05.30 @ 13:04:08 End 2021.05.30 @ 14:40:42 Sessions 1 Manual Loads 0 Difficulty Rogue Special Mode None Game No. 9 Rogue 7 Adventurer 2 Explorer 0 Win Type - Total 0 Types 0/0/0/0/0/0/0/0/0 Lore% 15 Gallery% 23 Achievement% 19 Wizard Run 0 Options --------- ASCII 0 Keyboard 0 Movement Numpad Keybinds 0 Fullscreen 1 Font 24/Smallcaps Map View 76x50 Tactical HUD 1 Map Filters NONE Filters NONE Steam 1 RUN: 69dc3895-5f66-4e31-87dc-09acd6fd3cbb